[Event "Turkish Cup 2024"]
[Site "Denizli"]
[Date "2024.08.03"]
[Round "7"]
[White "Zuberoglu, Ibrahim Berk"]
[Black "Celebi, Mehmet Alper"]
[Result "1-0"]
[ECO "A14"]
[WhiteElo "1870"]
[BlackElo "1998"]
[Annotator "ChessBase"]
[PlyCount "97"]
[EventDate "2024.08.01"]
[EventType "swiss"]
[EventCountry "TUR"]
[SourceTitle "playchess.com"]
[Source "ChessBase"]
[SourceQuality "1"]
[TimeControl "5400+30"]

1. Nf3 {[%emt 0:02:00]} Nf6 {[%emt 0:01:00]} 2. g3 {[%emt 0:01:30]} d5 {[%emt 0:00:30]} 3. c4 {[%emt 0:00:30]} e6 {[%emt 0:00:30]} 4. Bg2 {[%emt 0:01:30]} Be7 {[%emt 0:01:30]} 5. O-O {[%emt 0:02:30]} O-O {[%emt 0:00:30]} 6. b3 {[%emt 0:00:30]} b6 {[%emt 0:03:30]} 7. Bb2 {[%emt 0:02:30]} Bb7 {[%emt 0:00:30]} 8. Qc2 {[%emt 0:03:30]} Nbd7 {[%emt 0:02:30]} 9. d3 {[%emt 0:03:30]} c5 {[%emt 0:04:30]} 10. Nbd2 {[%emt 0:00:30]} Qc7 {[%emt 0:00:00]} 11. cxd5 {[%emt 0:05:30]} exd5 {[%emt 0:01:00]} 12. d4 {[%emt 0:04:30]} Rac8 {[%emt 0:08:30]} 13. Rac1 {[%emt 0:00:30]} Rfe8 {[%emt 0:02:30]} 14. Bh3 {[%emt 0:04:30]} Bd6 {[%emt 0:03:30]} 15. dxc5 {[%emt 0:07:30]} bxc5 {[%emt 0:17:30]} 16. Qd3 {[%emt 0:12:30]} Rcd8 {[%emt 0:02:30]} 17. Rfd1 {[%emt 0:01:30]} Bf8 {[%emt 0:02:30]} 18. e3 {[%emt 0:17:30]} Qb6 {[%emt 0:07:30]} 19. Qc2 {[%emt 0:04:30]} Nb8 {[%emt 0:02:30]} 20. Ne5 {[%emt 0:03:30]} Nc6 {[%emt 0:00:30]} 21. Nd3 {[%emt 0:00:57]} Ne4 {[%emt 0:02:30]} 22. Bf5 {[%emt 0:03:29]} Ba6 {[%emt 0:20:26]} 23. Nf4 {[%emt 0:02:09]} Nb4 {[%emt 0:00:00]} 24. Qb1 {[%emt 0:00:08]} Bc8 {[%emt 0:00:00]} 25. Bxc8 {[%emt 0:02:21]} Rxc8 {[%emt 0:00:00]} 26. Nxd5 {[%emt 0:00:55]} Nxd5 {[%emt 0:00:00]} 27. Nxe4 {[%emt 0:00:30]} Qb7 {[%emt 0:00:00]} 28. Ng5 {[%emt 0:01:36]} g6 {[%emt 0:00:00]} 29. Qd3 {[%emt 0:02:01]} Rcd8 {[%emt 0:00:00]} 30. e4 {[%emt 0:03:45]} Nf4 {[%emt 0:00:00]} 31. Qf3 {[%emt 0:02:03]} Nh5 {[%emt 0:00:00]} 32. Rd5 {[%emt 0:02:45]} Rxd5 {[%emt 0:00:00]} 33. exd5 {[%emt 0:00:05]} Bh6 {[%emt 0:00:00]} 34. h4 {[%emt 0:00:52]} f6 {[%emt 0:00:00]} 35. g4 {[%emt 0:01:13]} fxg5 {[%emt 0:00:00]} 36. gxh5 {[%emt 0:00:04]} gxh4 {[%emt 0:00:04]} 37. Rxc5 {[%emt 0:00:59]} Qe7 {[%emt 0:01:30]} 38. Qc3 {[%emt 0:01:55]} Qe1+ {[%emt 0:01:50]} 39. Qxe1 {[%emt 0:00:30]} Rxe1+ {[%emt 0:00:30]} 40. Kg2 {[%emt 0:00:30]} g5 {[%emt 0:00:30]} 41. d6 {[%emt 0:00:30]} Rd1 {[%emt 0:00:30]} 42. Be5 {[%emt 0:00:30]} Bf8 {[%emt 0:00:30]} 43. Rc7 {[%emt 0:00:30]} Bxd6 {[%emt 0:01:11]} 44. Rd7 {[%emt 0:00:00]} h3+ {[%emt 0:00:00]} 45. Kxh3 {[%emt 0:00:56]} Rd2 {[%emt 0:00:47]} 46. Bxd6 {[%emt 0:00:38]} Rxa2 {[%emt 0:00:30]} 47. h6 {[%emt 0:00:05]} g4+ {[%emt 0:00:37]} 48. Kxg4 {[%emt 0:00:11]} Rxf2 {[%emt 0:00:11]} 49. Rd8+ {[%emt 0:00:02]} 1-0

[Event "Turkish Cup 2024"]
[Site "Denizli"]
[Date "2024.08.03"]
[Round "7"]
[White "Selvi, Kaan"]
[Black "Dirikolu, Deniz"]
[Result "1-0"]
[ECO "C60"]
[WhiteElo "1863"]
[BlackElo "1911"]
[Annotator "ChessBase"]
[PlyCount "66"]
[EventDate "2024.08.01"]
[EventType "swiss"]
[EventCountry "TUR"]
[SourceTitle "playchess.com"]
[Source "ChessBase"]
[SourceQuality "1"]
[TimeControl "5400+30"]

1. e4 {[%emt 0:01:00]} e5 {[%emt 0:01:00]} 2. Nf3 {[%emt 0:00:00]} Nc6 {[%emt 0:00:00]} 3. Bb5 {[%emt 0:00:00]} g6 {[%emt 0:00:00]} 4. d4 {[%emt 0:00:30]} exd4 {[%emt 0:00:30]} 5. c3 {[%emt 0:00:30]} a6 {[%emt 0:00:00]} 6. Bc4 {[%emt 0:00:30]} Bg7 {[%emt 0:02:00]} 7. cxd4 {[%emt 0:00:30]} b5 {[%emt 0:03:30]} 8. Bb3 {[%emt 0:00:30]} Nge7 {[%emt 0:01:30]} 9. Nc3 {[%emt 0:05:30]} d6 {[%emt 0:01:30]} 10. O-O {[%emt 0:03:30]} O-O {[%emt 0:00:30]} 11. h3 {[%emt 0:00:00]} h6 {[%emt 0:08:30]} 12. Be3 {[%emt 0:09:00]} Na5 {[%emt 0:04:30]} 13. Qd2 {[%emt 0:04:30]} Kh7 {[%emt 0:24:30]} 14. d5 {[%emt 0:05:30]} f5 {[%emt 0:00:30]} 15. Bd4 {[%emt 0:02:30]} Nxb3 {[%emt 0:00:30]} 16. axb3 {[%emt 0:00:30]} Bxd4 {[%emt 0:00:00]} 17. Nxd4 {[%emt 0:02:30]} fxe4 {[%emt 0:06:00]} 18. Nxe4 {[%emt 0:00:30]} Nf5 {[%emt 0:09:30]} 19. Rac1 {[%emt 0:03:30]} Rf7 {[%emt 0:07:30]} 20. Ne6 {[%emt 0:17:30]} Bxe6 {[%emt 0:01:30]} 21. dxe6 {[%emt 0:00:30]} Rf8 {[%emt 0:00:30]} 22. Rce1 {[%emt 0:18:30]} d5 {[%emt 0:01:30]} 23. Nc5 {[%emt 0:00:30]} Re8 {[%emt 0:13:29]} 24. Nd7 {[%emt 0:04:30]} d4 {[%emt 0:01:21]} 25. Qf4 {[%emt 0:00:30]} Rxe6 {[%emt 0:02:16]} 26. Rxe6 {[%emt 0:02:15]} Qxd7 {[%emt 0:00:03]} 27. Qe4 {[%emt 0:02:13]} d3 {[%emt 0:02:40]} 28. g4 {[%emt 0:01:05]} Rg8 {[%emt 0:00:04]} 29. Kh1 {[%emt 0:01:44]} Nd6 {[%emt 0:00:01]} 30. Re7+ {[%emt 0:00:41]} Rg7 {[%emt 0:00:01]} 31. Rxd7 {[%emt 0:00:42]} Nxe4 {[%emt 0:00:08]} 32. Rxd3 {[%emt 0:00:01]} c5 {[%emt 0:00:29]} 33. Kg2 {[%emt 0:00:16]} Rc7 {[%emt 0:00:26]} 1-0

[Event "Turkish Cup 2024"]
[Site "Denizli"]
[Date "2024.08.03"]
[Round "7"]
[White "Uysal, Ilyas"]
[Black "Demirag, Gokhan"]
[Result "1-0"]
[ECO "B33"]
[WhiteElo "1849"]
[BlackElo "1938"]
[Annotator "ChessBase"]
[PlyCount "61"]
[EventDate "2024.08.01"]
[EventType "swiss"]
[EventCountry "TUR"]
[SourceTitle "playchess.com"]
[Source "ChessBase"]
[SourceQuality "1"]
[TimeControl "5400+30"]

1. e4 {[%emt 0:01:00]} c5 {[%emt 0:02:00]} 2. Nf3 {[%emt 0:00:00]} Nc6 {[%emt 0:00:00]} 3. d4 {[%emt 0:00:00]} cxd4 {[%emt 0:00:00]} 4. Nxd4 {[%emt 0:00:30]} Nf6 {[%emt 0:00:00]} 5. Nc3 {[%emt 0:00:30]} e5 {[%emt 0:00:00]} 6. Ndb5 {[%emt 0:02:30]} d6 {[%emt 0:00:30]} 7. Bg5 {[%emt 0:01:30]} a6 {[%emt 0:00:30]} 8. Na3 {[%emt 0:00:30]} b5 {[%emt 0:00:00]} 9. Nd5 {[%emt 0:00:00]} Be7 {[%emt 0:00:00]} 10. Bxf6 {[%emt 0:00:00]} Bxf6 {[%emt 0:00:00]} 11. c3 {[%emt 0:00:30]} O-O {[%emt 0:00:00]} 12. Nc2 {[%emt 0:00:00]} Bg5 {[%emt 0:00:00]} 13. a4 {[%emt 0:00:00]} bxa4 {[%emt 0:02:00]} 14. Rxa4 {[%emt 0:00:30]} a5 {[%emt 0:00:30]} 15. Bc4 {[%emt 0:02:30]} Rb8 {[%emt 0:01:30]} 16. b3 {[%emt 0:00:30]} Be6 {[%emt 0:00:30]} 17. O-O {[%emt 0:13:30]} Ne7 {[%emt 0:01:30]} 18. Nce3 {[%emt 0:04:30]} Bxe3 {[%emt 0:02:30]} 19. Nxe3 {[%emt 0:00:30]} Qc7 {[%emt 0:06:30]} 20. Qc2 {[%emt 0:05:30]} Bd7 {[%emt 0:05:30]} 21. Ra2 {[%emt 0:05:30]} Bc6 {[%emt 0:01:30]} 22. Rfa1 {[%emt 0:01:30]} Ra8 {[%emt 0:02:30]} 23. Qd3 {[%emt 0:10:30]} g6 {[%emt 0:07:30]} 24. Rd2 {[%emt 0:03:30]} Rfd8 {[%emt 0:05:30]} 25. Ng4 {[%emt 0:04:30]} Kg7 {[%emt 0:05:30]} 26. Qe3 {[%emt 0:01:30]} Ng8 {[%emt 0:00:30]} 27. f4 {[%emt 0:01:30]} f5 {[%emt 0:06:30]} 28. Nf2 {[%emt 0:11:30]} Nf6 {[%emt 0:12:30]} 29. exf5 {[%emt 0:04:30]} gxf5 {[%emt 0:02:30]} 30. fxe5 {[%emt 0:01:30]} dxe5 {[%emt 0:01:30]} 31. Qg5+ {[%emt 0:00:30]} 1-0

[Event "Turkish Cup 2024"]
[Site "Denizli"]
[Date "2024.08.03"]
[Round "7"]
[White "Ceylan, Arda"]
[Black "Sibli, Murat Yigit"]
[Result "0-1"]
[ECO "E67"]
[WhiteElo "1836"]
[BlackElo "1836"]
[Annotator "NA"]
[PlyCount "56"]
[EventDate "2024.08.01"]
[EventType "swiss"]
[EventCountry "TUR"]
[SourceTitle "playchess.com"]
[Source "ChessBase"]
[SourceQuality "1"]
[TimeControl "5400+30"]

1. c4 {[%emt 0:01:00]} Nf6 {[%emt 0:02:00]} 2. Nf3 {[%emt 0:00:00]} g6 {[%emt 0:01:30]} 3. Nc3 {[%emt 0:00:00]} Bg7 {[%emt 0:01:30]} 4. d4 {[%emt 0:00:30]} d6 {[%emt 0:00:30]} 5. g3 {[%emt 0:00:30]} Nbd7 {[%emt 0:00:30]} 6. Bg2 {[%emt 0:00:00]} O-O {[%emt 0:00:30]} 7. O-O {[%emt 0:00:00]} e5 {[%emt 0:01:30]} 8. e4 {[%emt 0:02:30]} a5 {[%emt 0:04:30]} 9. d5 {[%emt 0:00:30]} Nc5 {[%emt 0:01:30]} 10. Re1 {[%emt 0:01:30]} Bd7 {[%emt 0:09:30]} 11. h3 {[%emt 0:10:30]} Ne8 {[%emt 0:10:30]} 12. Be3 {[%emt 0:09:30]} b6 {[%emt 0:10:30]} 13. Qd2 {[%emt 0:05:30]} Qe7 {[%emt 0:13:30]} 14. Bh6 {[%emt 0:17:30]} Rb8 {[%emt 0:09:30]} 15. Rad1 {[%emt 0:06:30]} f5 {[%emt 0:05:30]} 16. exf5 {[%emt 0:01:30]} gxf5 {[%emt 0:07:43]} 17. Bxg7 {[%emt 0:18:30]} Qxg7 {[%emt 0:00:54]} 18. Qg5 {[%emt 0:11:19]} Nf6 {[%emt 0:02:08]} 19. Qxg7+ {[%emt 0:00:51]} Kxg7 {[%emt 0:00:02]} 20. h4 {[%emt 0:05:29]} h6 {[%emt 0:01:44]} 21. Bh3 {[%emt 0:00:40]} Rf7 {[%emt 0:01:47]} 22. b3 {[%emt 0:02:29]} Rbf8 {[%emt 0:01:20]} 23. Rd2 {[%emt 0:03:21]} Kh8 {[%emt 0:01:00]} 24. Rb1 {[%emt 0:00:43]} Rg8 {[%emt 0:02:04]} 25. Kh2 {[%emt 0:00:46]} f4 {[%emt 0:01:22]} 26. Bxd7 {[%emt 0:00:09]} Ncxd7 {[%emt 0:00:40]} 27. gxf4 {[%emt 0:01:56]} Ng4+ {[%emt 0:00:09]} 28. Kh1 {[%emt 0:00:04]} Rxf4 {[%emt 0:00:09]} 0-1

[Event "Turkish Cup 2024"]
[Site "Denizli"]
[Date "2024.08.03"]
[Round "7"]
[White "Seker, Cinar"]
[Black "Konusoglu, Kemal Safa"]
[Result "1-0"]
[ECO "B33"]
[WhiteElo "1815"]
[BlackElo "1904"]
[Annotator "ChessBase"]
[PlyCount "117"]
[EventDate "2024.08.01"]
[EventType "swiss"]
[EventCountry "TUR"]
[SourceTitle "playchess.com"]
[Source "ChessBase"]
[SourceQuality "1"]
[TimeControl "5400+30"]

1. e4 {[%emt 0:01:00]} c5 {[%emt 0:02:00]} 2. Nf3 {[%emt 0:00:00]} Nc6 {[%emt 0:03:30]} 3. d4 {[%emt 0:00:00]} cxd4 {[%emt 0:00:30]} 4. Nxd4 {[%emt 0:00:00]} Nf6 {[%emt 0:00:30]} 5. Nc3 {[%emt 0:00:00]} e5 {[%emt 0:00:30]} 6. Ndb5 {[%emt 0:00:30]} d6 {[%emt 0:00:00]} 7. Bg5 {[%emt 0:00:30]} a6 {[%emt 0:00:00]} 8. Na3 {[%emt 0:00:00]} b5 {[%emt 0:00:30]} 9. Nd5 {[%emt 0:00:00]} Be7 {[%emt 0:01:30]} 10. Bxf6 {[%emt 0:00:00]} Bxf6 {[%emt 0:00:30]} 11. c3 {[%emt 0:00:00]} Rb8 {[%emt 0:02:30]} 12. Nc2 {[%emt 0:00:30]} Bg5 {[%emt 0:00:00]} 13. a4 {[%emt 0:03:30]} bxa4 {[%emt 0:01:00]} 14. Rxa4 {[%emt 0:00:00]} Rxb2 {[%emt 0:03:30]} 15. Bxa6 {[%emt 0:00:00]} Bd7 {[%emt 0:08:30]} 16. Ra3 {[%emt 0:02:30]} O-O {[%emt 0:06:30]} 17. O-O {[%emt 0:04:30]} Be6 {[%emt 0:08:30]} 18. Nce3 {[%emt 0:05:30]} Bxe3 {[%emt 0:24:30]} 19. Nxe3 {[%emt 0:00:30]} Qb6 {[%emt 0:00:30]} 20. Qd3 {[%emt 0:05:30]} Qc5 {[%emt 0:03:30]} 21. Rfa1 {[%emt 0:01:30]} Rfb8 {[%emt 0:04:30]} 22. h3 {[%emt 0:00:00]} Ra8 {[%emt 0:08:35]} 23. Nd1 {[%emt 0:03:00]} Rbb8 {[%emt 0:01:11]} 24. Qe3 {[%emt 0:00:30]} Kf8 {[%emt 0:04:25]} 25. Qxc5 {[%emt 0:00:30]} dxc5 {[%emt 0:00:30]} 26. Ne3 {[%emt 0:00:00]} Ra7 {[%emt 0:02:23]} 27. Bc4 {[%emt 0:01:00]} Rb1+ {[%emt 0:03:05]} 28. Rxb1 {[%emt 0:00:00]} Rxa3 {[%emt 0:00:05]} 29. Bd5 {[%emt 0:00:00]} Nd8 {[%emt 0:06:14]} 30. c4 {[%emt 0:00:30]} Ra7 {[%emt 0:01:31]} 31. Rb5 {[%emt 0:01:30]} Rc7 {[%emt 0:00:03]} 32. Kf1 {[%emt 0:00:30]} Bd7 {[%emt 0:00:27]} 33. Ra5 {[%emt 0:01:30]} Ke7 {[%emt 0:00:33]} 34. Ke1 {[%emt 0:00:30]} g6 {[%emt 0:02:18]} 35. g4 {[%emt 0:00:30]} f6 {[%emt 0:00:01]} 36. Kd2 {[%emt 0:00:30]} Ne6 {[%emt 0:01:08]} 37. Bxe6 {[%emt 0:00:30]} Bxe6 {[%emt 0:00:39]} 38. Kc3 {[%emt 0:00:00]} Kd6 {[%emt 0:01:34]} 39. Nd5 {[%emt 0:01:00]} Bxd5 {[%emt 0:00:28]} 40. cxd5 {[%emt 0:00:30]} Rb7 {[%emt 0:01:37]} 41. Ra6+ {[%emt 0:00:00]} Ke7 {[%emt 0:00:24]} 42. Kc4 {[%emt 0:01:00]} Rb2 {[%emt 0:01:02]} 43. Re6+ {[%emt 0:00:30]} Kf7 {[%emt 0:00:06]} 44. Kxc5 {[%emt 0:00:30]} Rxf2 {[%emt 0:00:08]} 45. Ra6 {[%emt 0:00:30]} f5 {[%emt 0:00:41]} 46. Ra7+ {[%emt 0:31:30]} Kf6 {[%emt 0:00:08]} 47. gxf5 {[%emt 0:04:30]} gxf5 {[%emt 0:00:30]} 48. exf5 {[%emt 0:00:30]} Rxf5 {[%emt 0:00:30]} 49. Rxh7 {[%emt 0:00:30]} Rf3 {[%emt 0:00:27]} 50. Kd6 {[%emt 0:00:00]} e4 {[%emt 0:00:52]} 51. Re7 {[%emt 0:00:00]} e3 {[%emt 0:00:25]} 52. h4 {[%emt 0:00:30]} Rh3 {[%emt 0:00:42]} 53. Kd7 {[%emt 0:00:30]} Kf5 {[%emt 0:00:35]} 54. d6 {[%emt 0:02:30]} Kf4 {[%emt 0:00:08]} 55. Kc6 {[%emt 0:02:30]} Rxh4 {[%emt 0:00:47]} 56. d7 {[%emt 0:00:30]} Rh6+ {[%emt 0:00:30]} 57. Kc5 {[%emt 0:00:00]} Rh8 {[%emt 0:00:56]} 58. Re8 {[%emt 0:00:00]} Rxe8 {[%emt 0:00:37]} 59. dxe8=Q {[%emt 0:00:00]} 1-0

[Event "Turkish Cup 2024"]
[Site "Denizli"]
[Date "2024.08.03"]
[Round "7"]
[White "Sanan, Demirhan"]
[Black "Akyuz, Murat"]
[Result "1/2-1/2"]
[ECO "D34"]
[WhiteElo "1803"]
[BlackElo "1890"]
[Annotator "NA"]
[PlyCount "97"]
[EventDate "2024.08.01"]
[EventType "swiss"]
[EventCountry "TUR"]
[SourceTitle "playchess.com"]
[Source "ChessBase"]
[SourceQuality "1"]
[TimeControl "5400+30"]

1. c4 {[%emt 0:01:00]} Nf6 {[%emt 0:01:00]} 2. g3 {[%emt 0:00:30]} e6 {[%emt 0:00:30]} 3. Bg2 {[%emt 0:00:30]} d5 {[%emt 0:00:30]} 4. cxd5 {[%emt 0:00:30]} exd5 {[%emt 0:00:00]} 5. Nf3 {[%emt 0:00:30]} c5 {[%emt 0:03:00]} 6. d4 {[%emt 0:00:30]} Nc6 {[%emt 0:00:00]} 7. O-O {[%emt 0:00:00]} Be7 {[%emt 0:03:00]} 8. Nc3 {[%emt 0:00:00]} O-O {[%emt 0:00:30]} 9. Bf4 {[%emt 0:05:30]} a6 {[%emt 0:01:30]} 10. Rc1 {[%emt 0:00:30]} b5 {[%emt 0:02:30]} 11. dxc5 {[%emt 0:00:30]} Bxc5 {[%emt 0:13:30]} 12. Nxd5 {[%emt 0:09:30]} Nxd5 {[%emt 0:03:30]} 13. Rxc5 {[%emt 0:00:30]} Nxf4 {[%emt 0:00:30]} 14. gxf4 {[%emt 0:00:30]} Bb7 {[%emt 0:07:30]} 15. Rd5 {[%emt 0:03:30]} Qf6 {[%emt 0:03:30]} 16. Rd7 {[%emt 0:08:30]} Rad8 {[%emt 0:04:30]} 17. Rxd8 {[%emt 0:09:30]} Rxd8 {[%emt 0:00:00]} 18. Qc1 {[%emt 0:00:30]} Nd4 {[%emt 0:03:00]} 19. Nxd4 {[%emt 0:03:30]} Bxg2 {[%emt 0:00:30]} 20. Kxg2 {[%emt 0:01:30]} Qxd4 {[%emt 0:00:30]} 21. a3 {[%emt 0:14:30]} Qe4+ {[%emt 0:04:30]} 22. Kg1 {[%emt 0:04:30]} Qxe2 {[%emt 0:00:30]} 23. Re1 {[%emt 0:00:30]} Qg4+ {[%emt 0:00:30]} 24. Kf1 {[%emt 0:00:30]} Qh3+ {[%emt 0:01:30]} 25. Kg1 {[%emt 0:00:00]} Qg4+ {[%emt 0:00:00]} 26. Kf1 {[%emt 0:00:00]} h5 {[%emt 0:01:00]} 27. Qe3 {[%emt 0:02:30]} h4 {[%emt 0:01:30]} 28. h3 {[%emt 0:00:30]} Qf5 {[%emt 0:01:30]} 29. Kg2 {[%emt 0:11:30]} Rd6 {[%emt 0:13:30]} 30. Qe8+ {[%emt 0:05:35]} Kh7 {[%emt 0:00:00]} 31. Qe4 {[%emt 0:00:00]} Rg6+ {[%emt 0:00:00]} 32. Kh2 {[%emt 0:00:01]} Qc5 {[%emt 0:01:30]} 33. Rf1 {[%emt 0:12:37]} f5 {[%emt 0:11:30]} 34. Qf3 {[%emt 0:00:26]} Qc6 {[%emt 0:05:34]} 35. Qh5+ {[%emt 0:03:10]} Kg8 {[%emt 0:00:13]} 36. Rg1 {[%emt 0:00:00]} Rxg1 {[%emt 0:02:39]} 37. Kxg1 {[%emt 0:00:00]} Qf6 {[%emt 0:04:09]} 38. b4 {[%emt 0:01:18]} Kf8 {[%emt 0:00:51]} 39. Qf3 {[%emt 0:00:23]} Qg6+ {[%emt 0:00:52]} 40. Kh2 {[%emt 0:01:00]} Qd6 {[%emt 0:00:06]} 41. Kg2 {[%emt 0:01:50]} Ke7 {[%emt 0:00:51]} 42. Qe3+ {[%emt 0:01:45]} Qe6 {[%emt 0:00:17]} 43. Qc5+ {[%emt 0:01:13]} Kf6 {[%emt 0:00:15]} 44. Qc3+ {[%emt 0:00:37]} Kf7 {[%emt 0:00:34]} 45. Qc7+ {[%emt 0:00:43]} Kg6 {[%emt 0:00:07]} 46. Kh2 {[%emt 0:00:21]} Kf6 {[%emt 0:02:22]} 47. Qd8+ {[%emt 0:00:14]} Qe7 {[%emt 0:01:24]} 48. Qb6+ {[%emt 0:00:11]} Qe6 {[%emt 0:02:34]} 49. Qd8+ {[%emt 0:00:06]} 1/2-1/2

[Event "Turkish Cup 2024"]
[Site "Denizli"]
[Date "2024.08.03"]
[Round "7"]
[White "Bozdag, Armagan Emre"]
[Black "Yardimci, Can"]
[Result "1/2-1/2"]
[ECO "B74"]
[WhiteElo "1794"]
[BlackElo "1930"]
[Annotator "ChessBase"]
[PlyCount "137"]
[EventDate "2024.08.01"]
[EventType "swiss"]
[EventCountry "TUR"]
[SourceTitle "playchess.com"]
[Source "ChessBase"]
[SourceQuality "1"]
[TimeControl "5400+30"]

1. e4 {[%emt 0:08:00]} c5 {[%emt 0:01:00]} 2. Nc3 {[%emt 0:00:30]} g6 {[%emt 0:00:30]} 3. Nf3 {[%emt 0:01:30]} Bg7 {[%emt 0:02:30]} 4. d4 {[%emt 0:00:30]} cxd4 {[%emt 0:00:30]} 5. Nxd4 {[%emt 0:00:30]} d6 {[%emt 0:00:00]} 6. Be3 {[%emt 0:00:30]} Nf6 {[%emt 0:00:00]} 7. Be2 {[%emt 0:00:30]} Nc6 {[%emt 0:01:30]} 8. O-O {[%emt 0:00:30]} O-O {[%emt 0:00:30]} 9. Nb3 {[%emt 0:00:00]} Bd7 {[%emt 0:03:30]} 10. f4 {[%emt 0:03:00]} Rc8 {[%emt 0:01:30]} 11. Kh1 {[%emt 0:01:30]} Na5 {[%emt 0:03:30]} 12. e5 {[%emt 0:02:30]} Ne8 {[%emt 0:02:30]} 13. Nxa5 {[%emt 0:03:30]} Qxa5 {[%emt 0:00:30]} 14. Nd5 {[%emt 0:00:30]} Qd8 {[%emt 0:00:30]} 15. Bxa7 {[%emt 0:00:30]} Be6 {[%emt 0:09:30]} 16. Bb6 {[%emt 0:19:30]} Qd7 {[%emt 0:00:00]} 17. Nc3 {[%emt 0:00:30]} dxe5 {[%emt 0:03:00]} 18. Qxd7 {[%emt 0:09:30]} Bxd7 {[%emt 0:00:30]} 19. Nd5 {[%emt 0:00:00]} Rxc2 {[%emt 0:02:30]} 20. Bd3 {[%emt 0:02:00]} Rxb2 {[%emt 0:04:30]} 21. Bc5 {[%emt 0:00:30]} e4 {[%emt 0:08:30]} 22. Nxe7+ {[%emt 0:04:30]} Kh8 {[%emt 0:00:30]} 23. Bxe4 {[%emt 0:00:00]} Nf6 {[%emt 0:00:30]} 24. Bf3 {[%emt 0:03:00]} Be6 {[%emt 0:07:30]} 25. Ba3 {[%emt 0:04:30]} Rxa2 {[%emt 0:02:30]} 26. Rxa2 {[%emt 0:00:30]} Bxa2 {[%emt 0:00:30]} 27. Bxb7 {[%emt 0:00:00]} Rd8 {[%emt 0:04:30]} 28. Bf3 {[%emt 0:02:00]} Be6 {[%emt 0:02:30]} 29. Rd1 {[%emt 0:05:30]} Rxd1+ {[%emt 0:01:30]} 30. Bxd1 {[%emt 0:00:30]} Ne4 {[%emt 0:04:30]} 31. Be2 {[%emt 0:02:30]} Bd4 {[%emt 0:02:30]} 32. Nc6 {[%emt 0:00:30]} Be3 {[%emt 0:01:30]} 33. Bb2+ {[%emt 0:08:57]} Kg8 {[%emt 0:03:30]} 34. g3 {[%emt 0:00:33]} Nxg3+ {[%emt 0:01:30]} 35. hxg3 {[%emt 0:00:48]} Bd5+ {[%emt 0:00:30]} 36. Kh2 {[%emt 0:00:30]} Bxc6 {[%emt 0:00:00]} 37. Bc4 {[%emt 0:00:27]} Bf3 {[%emt 0:02:00]} 38. Bf6 {[%emt 0:01:12]} Bg4 {[%emt 0:00:30]} 39. Kg2 {[%emt 0:00:41]} Bc5 {[%emt 0:00:00]} 40. Ba2 {[%emt 0:00:51]} Kf8 {[%emt 0:01:00]} 41. Bc4 {[%emt 0:00:38]} Ke8 {[%emt 0:00:30]} 42. Bb5+ {[%emt 0:01:01]} Bd7 {[%emt 0:00:00]} 43. Bxd7+ {[%emt 0:00:25]} Kxd7 {[%emt 0:00:00]} 44. Kf3 {[%emt 0:00:30]} Ke6 {[%emt 0:00:30]} 45. Bd8 {[%emt 0:00:30]} Be7 {[%emt 0:00:30]} 46. Ba5 {[%emt 0:00:30]} f5 {[%emt 0:00:30]} 47. Bc3 {[%emt 0:00:30]} Bf6 {[%emt 0:00:30]} 48. Be1 {[%emt 0:00:30]} Kd5 {[%emt 0:05:30]} 49. Ba5 {[%emt 0:00:40]} Kd4 {[%emt 0:01:30]} 50. Bb6+ {[%emt 0:00:58]} Kd3 {[%emt 0:00:30]} 51. Ba5 {[%emt 0:00:00]} h5 {[%emt 0:01:30]} 52. Bb4 {[%emt 0:01:29]} Bd4 {[%emt 0:00:36]} 53. Ba5 {[%emt 0:00:40]} Kc2 {[%emt 0:00:24]} 54. Ke2 {[%emt 0:00:39]} Bf6 {[%emt 0:00:30]} 55. Bc7 {[%emt 0:00:34]} h4 {[%emt 0:01:09]} 56. gxh4 {[%emt 0:00:30]} Bxh4 {[%emt 0:00:00]} 57. Be5 {[%emt 0:00:21]} Bg3 {[%emt 0:00:21]} 58. Kf3 {[%emt 0:00:33]} Bh4 {[%emt 0:00:30]} 59. Ke2 {[%emt 0:00:00]} Be7 {[%emt 0:00:50]} 60. Bb8 {[%emt 0:00:02]} Kc3 {[%emt 0:00:10]} 61. Kf3 {[%emt 0:00:49]} Kd3 {[%emt 0:00:30]} 62. Be5 {[%emt 0:00:00]} Kc4 {[%emt 0:00:30]} 63. Bc7 {[%emt 0:00:27]} Kd5 {[%emt 0:00:30]} 64. Ba5 {[%emt 0:00:00]} Bd6 {[%emt 0:00:30]} 65. Bc3 {[%emt 0:00:00]} Be7 {[%emt 0:00:00]} 66. Ba5 {[%emt 0:00:41]} g5 {[%emt 0:00:00]} 67. fxg5 {[%emt 0:00:30]} Bxg5 {[%emt 0:00:30]} 68. Bc7 {[%emt 0:00:00]} Kd4 {[%emt 0:00:00]} 69. Bb6+ {[%emt 0:00:00]} 1/2-1/2

[Event "Turkish Cup 2024"]
[Site "Denizli"]
[Date "2024.08.03"]
[Round "7"]
[White "Arslan, Levent"]
[Black "Cetindag, Alper"]
[Result "0-1"]
[ECO "B50"]
[WhiteElo "1778"]
[BlackElo "1923"]
[Annotator "ChessBase"]
[PlyCount "72"]
[EventDate "2024.08.01"]
[EventType "swiss"]
[EventCountry "TUR"]
[SourceTitle "playchess.com"]
[Source "ChessBase"]
[SourceQuality "1"]
[TimeControl "5400+30"]

1. e4 {[%emt 0:01:00]} c5 {[%emt 0:01:00]} 2. Nf3 {[%emt 0:00:30]} d6 {[%emt 0:00:00]} 3. Bb5+ {[%emt 0:00:30]} Nd7 {[%emt 0:00:00]} 4. O-O {[%emt 0:00:30]} a6 {[%emt 0:00:30]} 5. Bd3 {[%emt 0:01:30]} g6 {[%emt 0:02:30]} 6. c3 {[%emt 0:00:30]} Bg7 {[%emt 0:00:00]} 7. Re1 {[%emt 0:00:30]} Ngf6 {[%emt 0:01:00]} 8. Bf1 {[%emt 0:01:30]} O-O {[%emt 0:01:30]} 9. d4 {[%emt 0:00:30]} e5 {[%emt 0:11:30]} 10. dxe5 {[%emt 0:06:30]} dxe5 {[%emt 0:02:30]} 11. a4 {[%emt 0:02:30]} b6 {[%emt 0:02:30]} 12. Na3 {[%emt 0:01:30]} Bb7 {[%emt 0:00:30]} 13. Qc2 {[%emt 0:02:30]} h6 {[%emt 0:04:30]} 14. Bd2 {[%emt 0:07:30]} Qc7 {[%emt 0:01:30]} 15. Rad1 {[%emt 0:00:30]} Rad8 {[%emt 0:09:30]} 16. Nc4 {[%emt 0:01:30]} Rfe8 {[%emt 0:01:30]} 17. Bc1 {[%emt 0:00:30]} Bf8 {[%emt 0:02:30]} 18. Nfd2 {[%emt 0:18:30]} Bc6 {[%emt 0:06:30]} 19. Ne3 {[%emt 0:06:30]} Qb7 {[%emt 0:08:30]} 20. f3 {[%emt 0:00:30]} Qa8 {[%emt 0:14:30]} 21. Ndc4 {[%emt 0:08:30]} Kg7 {[%emt 0:04:30]} 22. Qb3 {[%emt 0:06:30]} b5 {[%emt 0:01:30]} 23. axb5 {[%emt 0:01:30]} axb5 {[%emt 0:00:30]} 24. Nd6 {[%emt 0:02:30]} c4 {[%emt 0:06:05]} 25. Nxe8+ {[%emt 0:02:30]} Rxe8 {[%emt 0:00:04]} 26. Qc2 {[%emt 0:01:30]} Nc5 {[%emt 0:00:14]} 27. Qf2 {[%emt 0:06:40]} Nb3 {[%emt 0:00:47]} 28. Nc2 {[%emt 0:02:04]} Nxc1 {[%emt 0:04:02]} 29. Rxc1 {[%emt 0:00:03]} Rc8 {[%emt 0:01:57]} 30. Kh1 {[%emt 0:01:59]} Bb7 {[%emt 0:02:21]} 31. Nb4 {[%emt 0:02:43]} Bc5 {[%emt 0:01:25]} 32. Qg3 {[%emt 0:01:03]} Re8 {[%emt 0:00:27]} 33. Ra1 {[%emt 0:02:54]} Qd8 {[%emt 0:02:46]} 34. Red1 {[%emt 0:01:50]} Nh5 {[%emt 0:00:30]} 35. Qxe5+ {[%emt 0:02:31]} Rxe5 {[%emt 0:00:30]} 36. Rxd8 {[%emt 0:00:30]} Ng3+ {[%emt 0:00:00]} 0-1